{"text_format":"3","workbook":"xlsx","n_sheets":2,"sheets":["COMO USAR ESTA PASTA DE TRABALH","BOLETIM"],"not_rendered":{"defined_names":7},"read":"whole","date_system":"1900"}

{"sheet":"COMO USAR ESTA PASTA DE TRABALH","index":0,"n_rows":10,"n_cols":2,"rows_kept":10}
[null,"INSTRUÇÕES"]
[null,"Use planilha BOLETIM para calcular notas em cada tarefa vale um número definido de pontos. "]
[null,"Instruções: Certifique-se de salvar cópias de backup de suas notas."]
[null,"1. Preencha o nome da escola, informações da classe, os nomes dos alunos e IDs do aluno (opcionais).   "]
[null,"2. Ajuste a tabela de notas e médias para coincidir com o sistema de pontuação típico que você usar."]
[null,"3. Preencha a atribuição, teste ou nomes de teste (por exemplo, \"teste 1\") iniciando na célula H8, juntamente com os pontos que cada tarefa vale. "]
[null,"4. Preencha os resultados para cada aluno em cada tarefa ou teste. As colunas \"Média\", “Pontuação”,\" \"Nota Ltr\" e \"Médias\" são calculadas automaticamente, mas você pode substituí-las se desejar. Para conceder pontos de crédito adicional, basta dar mais pontos em uma tarefa que o total de pontos possíveis listados para essa tarefa."]
[null,"Use o comando \"Área de impressão\" no menu de Layout da página se você quiser alterar o que imprime."]
[null,"Pontuação de notas são baseadas em uma escala de porcentagem padrão de acordo com o número total de pontos atribuídos nas linhas 8 e 9. Ajuste cada tarefa ou teste para os pontos desejados e ajuste o campo porcentagem com a nota apropriada. Substitua as células de pontuação para fazer alterações manualmente."]
[null,"Insira cada atribuição, questionário ou teste e os pontos que valem nas células H8 para X9."]

{"sheet":"BOLETIM","index":1,"n_rows":24,"n_cols":24,"rows_kept":24,"merged":[[1,1,2,6],[3,1,3,6],[4,1,6,6],[7,4,7,6],[8,4,8,6],[10,4,10,6],[11,4,11,6],[19,1,19,6],[20,1,20,2],[20,3,20,4],[21,1,21,2],[21,3,21,4],[22,1,22,2],[22,3,22,4],[23,1,23,2],[23,3,23,4]]}
[null,"NOME DA SUA ESCOLA"]
[null,"Nome do professor"]
[{"$nulls":7},"Pontuação",{"$f":"I4*TotalPontos","v":118},120,126,134,140,{"v":145.6666666666666,"d":"146"},154,160,166,174,180,186,194]
[null,"Projeto/turma",{"$nulls":5},"%",{"v":0.59,"d":"59%"},{"v":0.6,"d":"60%"},{"v":0.63,"d":"63%"},{"v":0.67,"d":"67%"},{"v":0.7,"d":"70%"},{"v":0.728333333333333,"d":"73%"},{"v":0.77,"d":"77%"},{"v":0.8,"d":"80%"},{"v":0.83,"d":"83%"},{"v":0.87,"d":"87%"},{"v":0.9,"d":"90%"},{"v":0.93,"d":"93%"},{"v":0.97,"d":"97%"}]
[null,"Ano/semestre/trimestre",{"$nulls":5},"Nota Ltr","F","D-","D","D+","C-","C","C+","B-","B","B+","A-","A","A+"]
[{"$nulls":7},"MÉDIAS",0,0.67,1,1.33,1.67,2,2.33,2.67,3,3.33,3.67,4,4]
[]
[{"$nulls":4},"Atribuição ou o nome de teste",null,null,"HW1","HW2","T1"]
[{"$nulls":4},"Dinheiro total disponível:",null,null,50,50,100]
[]
[{"$nulls":4},"Total de tarefas e testes:",null,null,{"$f":"COUNTA(H8:X8)","v":3}]
[{"$nulls":4},"Total de pontos possíveis:",null,null,{"$f":"SUM(H9:X9)","v":200}]
[]
[null,"Nome do(a) aluno(a)","Nº de ID do Aluno","Média","Pontuação","Nota Ltr","MÉDIAS","Column6","Column7","Column8","Column9","Column10","Column11","Column12","Column13","Column14","Column15","Column16","Column17","Column18","Column19","Column20","Column21","Column22"]
[null,"Número do aluno 1",null,{"$f":"IFERROR(IF(COUNT(Notas[[#This Row],[Column6]:[Column22]])=0,\"\",SUM(Notas[[#This Row],[Column6]:[Column22]])/TotalPontos),\"\")","v":{"v":0.91,"d":"91.0%"}},{"$f":"IF(COUNT(Notas[[#This Row],[Column6]:[Column22]])=0,\"\",SUM(Notas[[#This Row],[Column6]:[Column22]]))","v":182},{"$f":"IFERROR(IF(Notas[[#This Row],[Média]]<>\"\",HLOOKUP(Notas[[#This Row],[Média]]*TotalPontos,TabelaNotas,3),\"\"),0)","v":"A-"},{"$f":"IFERROR(IF(Notas[[#This Row],[Média]]<>\"\",HLOOKUP(Notas[[#This Row],[Média]]*TotalPontos,TabelaNotas,4),\"\"),0)","v":3.67},45,45,92]
[null,"Número do aluno dos",null,{"$f":"IFERROR(IF(COUNT(Notas[[#This Row],[Column6]:[Column22]])=0,\"\",SUM(Notas[[#This Row],[Column6]:[Column22]])/TotalPontos),\"\")","v":{"v":1,"d":"100.0%"}},{"$f":"IF(COUNT(Notas[[#This Row],[Column6]:[Column22]])=0,\"\",SUM(Notas[[#This Row],[Column6]:[Column22]]))","v":200},{"$f":"IFERROR(IF(Notas[[#This Row],[Média]]<>\"\",HLOOKUP(Notas[[#This Row],[Média]]*TotalPontos,TabelaNotas,3),\"\"),0)","v":"A+"},{"$f":"IFERROR(IF(Notas[[#This Row],[Média]]<>\"\",HLOOKUP(Notas[[#This Row],[Média]]*TotalPontos,TabelaNotas,4),\"\"),0)","v":{"v":4,"d":"4.00"}},50,50,100]
[{"$nulls":3},{"$f":"IFERROR(IF(COUNT(Notas[[#This Row],[Column6]:[Column22]])=0,\"\",SUM(Notas[[#This Row],[Column6]:[Column22]])/TotalPontos),\"\")","v":""},{"$f":"IF(COUNT(Notas[[#This Row],[Column6]:[Column22]])=0,\"\",SUM(Notas[[#This Row],[Column6]:[Column22]]))","v":""},{"$f":"IFERROR(IF(Notas[[#This Row],[Média]]<>\"\",HLOOKUP(Notas[[#This Row],[Média]]*TotalPontos,TabelaNotas,3),\"\"),0)","v":""},{"$f":"IFERROR(IF(Notas[[#This Row],[Média]]<>\"\",HLOOKUP(Notas[[#This Row],[Média]]*TotalPontos,TabelaNotas,4),\"\"),0)","v":""}]
[{"$nulls":3},{"$f":"IFERROR(IF(COUNT(Notas[[#This Row],[Column6]:[Column22]])=0,\"\",SUM(Notas[[#This Row],[Column6]:[Column22]])/TotalPontos),\"\")","v":""},{"$f":"IF(COUNT(Notas[[#This Row],[Column6]:[Column22]])=0,\"\",SUM(Notas[[#This Row],[Column6]:[Column22]]))","v":""},{"$f":"IFERROR(IF(Notas[[#This Row],[Média]]<>\"\",HLOOKUP(Notas[[#This Row],[Média]]*TotalPontos,TabelaNotas,3),\"\"),0)","v":""},{"$f":"IFERROR(IF(Notas[[#This Row],[Média]]<>\"\",HLOOKUP(Notas[[#This Row],[Média]]*TotalPontos,TabelaNotas,4),\"\"),0)","v":""}]
[{"$nulls":3},{"$f":"IFERROR(IF(COUNT(Notas[[#This Row],[Column6]:[Column22]])=0,\"\",SUM(Notas[[#This Row],[Column6]:[Column22]])/TotalPontos),\"\")","v":""},{"$f":"IF(COUNT(Notas[[#This Row],[Column6]:[Column22]])=0,\"\",SUM(Notas[[#This Row],[Column6]:[Column22]]))","v":""},{"$f":"IFERROR(IF(Notas[[#This Row],[Média]]<>\"\",HLOOKUP(Notas[[#This Row],[Média]]*TotalPontos,TabelaNotas,3),\"\"),0)","v":""},{"$f":"IFERROR(IF(Notas[[#This Row],[Média]]<>\"\",HLOOKUP(Notas[[#This Row],[Média]]*TotalPontos,TabelaNotas,4),\"\"),0)","v":""}]
[]
[null,"Resumo de classe",null,"Média",null,"Nota Ltr","MÉDIAS","","","","","","","","","","",""]
[null," Média",null,{"$f":"IFERROR(AVERAGE(Notas[[#All],[Média]]),0)","v":{"v":0.9550000000000001,"d":"95.5%"}},null,{"$f":"IFERROR(HLOOKUP(D22*TotalPontos,TabelaNotas,3),\"\")","v":"A"},{"$f":"IFERROR(AVERAGE(Notas[[#All],[MÉDIAS]]),0)","v":{"v":3.835,"d":"3.84"}},"","","","","","","","","","","","","","","","",""]
[null," Pontuação maior",null,{"$f":"IFERROR(MAX(Notas[[#All],[Média]]),0)","v":{"v":1,"d":"100.0%"}},null,{"$f":"IFERROR(HLOOKUP(D23*TotalPontos,TabelaNotas,3),\"\")","v":"A+"},{"$f":"IFERROR(MAX(Notas[[#All],[MÉDIAS]]),0)","v":{"v":4,"d":"4.00"}},"","","","","","","","","","","","","","","","",""]
[null," Pontuação mais baixa",null,{"$f":"IFERROR(MIN(Notas[[#All],[Média]]),0)","v":{"v":0.91,"d":"91.0%"}},null,{"$f":"IFERROR(HLOOKUP(D24*TotalPontos,TabelaNotas,3),\"\")","v":"A-"},{"$f":"IFERROR(MIN(Notas[[#All],[MÉDIAS]]),0)","v":3.67},"","","","","","","","","","","","","","","","",""]